[Event "4NCL Div 1 2024-25"]
[Site "England"]
[Date "2025.04.05"]
[Round "7.1"]
[White "Rendle, Thomas E"]
[Black "Harvey, Marcus R"]
[Result "0-1"]
[Annotator "TA"]
[ECO "C06"]
[WhiteElo "2383"]
[BlackElo "2491"]
[PlyCount "92"]
[EventDate "2024.11.23"]
[EventType "team-tourn"]
[EventCountry "ENG"]
[SourceTitle "playchess.com"]
[Source "ChessBase"]
[SourceQuality "1"]
[TimeControl "40/6000+30:3000+30"]

{[%evp 19,92,0,0,-27,-20,-7,-14,-14,-14,-14,-19,-59,-24,-26,-36,-45,-42,-36,-40,-43,-35,-76,-64,-68,-19,-82,-62,-84,0,-121,0,-53,32,-27,-26,-25,-12,-41,0,-45,-8,-8,-8,-8,0,0,0,0,0,-13,-14,-51,-57,-49,0,0,0,-105,-124,-131,-111,-1006,-989,-1244,-1227,-1079,-1088,-1005,-978,-979,-961,-29990,-29991,-29991,-29992]} 1. e4 {[%emt 0:10:03][%cal Be2e4,Be4e5][%mdl 32]} e6 {[%emt 0:21:30]} 2. d4 {[%emt 0:00:14]} d5 {[%emt 0:00:08]} 3. Nd2 {[%emt 0:00:11]} Be7 {[%emt 0:00:02]} 4. Ngf3 {[%emt 0:04:50]} Nf6 {[%emt 0:00:33]} 5. e5 {[%emt 0:00:14]} Nfd7 {[%emt 0:00:05]} 6. Bd3 {[%emt 0:00:06]} c5 {[%emt 0:00:03]} 7. c3 {[%emt 0:00:08]} Nc6 {[%emt 0:01:08]} 8. O-O {[%emt 0:01:20]} a5 {[%emt 0:01:21]} 9. Re1 {[%emt 0:02:15] 9.a4 is the hot move.} cxd4 {[%emt 0:05:53]} 10. cxd4 {[%emt 0:05:25]} Qb6 $1 {[%emt 0:00:40]} 11. Nb1 {[%emt 0:00:47] is the legacy move (11.Qa4). C06: French Tarrasch: 3...Nf6 4 e5 Nfd7 5 Bd3 main lines.} Nxd4 {[%emt 0:08:47]} 12. Nxd4 {[%emt 0:00:16]} Qxd4 {[%emt 0:00:05]} 13. Nc3 {[%emt 0:00:13] White sacrificed a pawn. The position is equal.} Qb6 {[%emt 0:05:25]} 14. Be3 $1 {[%emt 0:02:16]} Qd8 {[%emt 0:05:03]} 15. Bd4 $146 {[%emt 0:07:35]} (15. Qg4 O-O 16. Bh6 g6 17. Bxf8 Bxf8 18. Bb5 Bg7 19. Qd4 f6 20. Nxd5 fxe5 21. Qc4 exd5 22. Qxd5+ {1-0 Oratovsky,M (2536)-Lalic,B (2535) Salou op 06th 2004}) 15... Nc5 {[%emt 0:02:19]} 16. Bc2 {[%emt 0:09:28]} Bd7 {[%emt 0:01:41] Against Nb5} 17. Qg4 {[%emt 0:10:08]} g6 {[%emt 0:02:28]} 18. h4 {[%emt 0:07:51]} h5 {[%emt 0:00:59]} 19. Qf4 {[%emt 0:00:39][%cal Oc3d5]} Bc6 {[%emt 0:00:18]} 20. Rad1 {[%emt 0:10:17]} Nd7 {[%emt 0:06:22]} 21. g3 {[%emt 0:08:28]} a4 {[%emt 0:00:44]} (21... g5 $15 {is more appropriate.} 22. hxg5 Bxg5) 22. Ne2 {[%emt 0:02:38]} (22. Bd3 $11) 22... a3 $17 {[%emt 0:05:12]} 23. b3 {[%emt 0:00:33]} Bf8 {[%emt 0:07:55]} (23... g5 $1 $17 {[%cal Rg5f4]} 24. hxg5 Bxg5) 24. Qf3 {[%emt 0:02:15] [#]} (24. Qe3 $11) 24... Nc5 {[%emt 0:07:03]} (24... g5 $1 $17 25. hxg5 Qxg5) 25. b4 {[%emt 0:05:19]} ({White should play} 25. Rc1 $11) 25... Ba4 {[%emt 0:03:23]} ({Black should play} 25... Na6 $15) 26. Bxa4+ {[%emt 0:06:05]} (26. Qxa3 $2 Bxc2 27. Qb2 Bxd1 28. bxc5 Bxe2 29. Rxe2 Ra4 $19) (26. Bxg6 $1 $14 fxg6 27. bxc5 Bxd1 28. Rxd1) 26... Nxa4 $11 {[%emt 0:00:40]} 27. Qxa3 {[%emt 0:14:26]} Bh6 {[%emt 0:02:26]} 28. Qd3 {[%emt 0:00:00]} O-O {[%emt 0:01:10]} 29. Kg2 {[%emt 0:00:00]} Nb6 {[%emt 0:00:28]} 30. Ra1 {[%emt 0:00:00]} Nc4 {[%emt 0:02:35]} 31. a4 $1 {[%emt 0:00:00]} Qc7 {[%emt 0:03:25]} 32. Nc3 {[%emt 0:02:30]} Rfc8 {[%emt 0:00:53]} 33. Nb5 {[%emt 0:00:00]} Qd7 {[%emt 0:00:43]} 34. Qf3 {[%emt 0:00:00]} Bf8 {[%emt 0:04:44]} 35. g4 {[%emt 0:00:00]} Bxb4 {[%emt 0:00:27][%csl Oc4] Strong Square Black (c4)} 36. Rh1 {[%emt 0:00:00]} Kh7 {[%emt 0:04:56]} (36... Nd2 $15 37. Qd1 hxg4 38. Qxg4 Kh7) 37. gxh5 {[%emt 0:00:00]} Rg8 {[%emt 0:00:05]} 38. Qd3 {[%emt 0:00:00] [#]} (38. Rhg1 $11 {keeps the balance.}) 38... f5 $1 $17 {[%emt 0:01:12]} 39. exf6 {[%emt 0:00:00][%csl Oa4,Of2,Of6,Oh4,Oh5] and Rh3 would now be decisive. White has weak pawns} e5 {[%emt 0:00:08] Dancing on a razor blade.} 40. hxg6+ $2 {[%emt 0:03:06][%mdl 8192] Loses the game.} (40. Rh3 $17 Qf5 (40... exd4 41. Rg3 $14) 41. f7) 40... Rxg6+ $19 {[%emt 0:00:05]} 41. Kf1 {[%emt 0:50:04]} Nd2+ {[%emt 0:34:40]} 42. Ke2 {[%emt 0:00:00]} Qg4+ {[%emt 0:00:27]} 43. f3 {[%emt 0:00:00]} Qg2+ {[%emt 0:00:30]} 44. Bf2 {[%emt 0:00:00]} e4 {[%emt 0:00:06]} 45. fxe4 {[%emt 0:00:00]} Qg4+ {[%emt 0:01:29]} 46. Ke1 {[%emt 0:00:00]} Nxe4+ {[%emt 0:00:34] Weighted Error Value: White=0.58/Black=0.18 (very precise)   Loses game:     	White=1     	---        Mistake:       	White=5     	Black=5      Inaccurate:     	White=5     	Black=3      OK:         	White=5     	Black=9      Best:        	White=4     	Black=2      Strong:       	White=2     	Black=1} (46... Qxe4+ 47. Qxe4 Nxe4+ 48. Ke2 $19) 0-1

[Event "4NCL Div 1 2024-25"]
[Site "England"]
[Date "2025.04.05"]
[Round "7.2"]
[White "Speelman, Jon S"]
[Black "Bremner, Adam"]
[Result "1-0"]
[Annotator "TA"]
[ECO "E08"]
[WhiteElo "2499"]
[BlackElo "2149"]
[PlyCount "99"]
[EventDate "2024.11.23"]
[EventType "team-tourn"]
[EventCountry "ENG"]
[SourceTitle "playchess.com"]
[Source "ChessBase"]
[SourceQuality "1"]
[TimeControl "40/6000+30:3000+30"]

{[%evp 19,99,18,23,-2,11,6,15,8,14,-8,6,0,0,-48,-36,-51,-37,-23,-29,-29,-26,-41,-25,-31,-41,-30,-17,-6,-4,-26,16,6,20,29,14,14,43,43,90,72,77,84,108,108,130,127,131,87,135,96,124,49,64,63,135,127,279,271,262,278,229,262,465,465,465,465,465,465,390,356,619,534,896,921,810,737,2133,1843,2001,1131,1856,1701]} 1. d4 {[%emt 0:09:58]} Nf6 {[%emt 0:11:17]} 2. c4 {[%emt 0:02:21]} e6 {[%emt 0:00:12]} 3. g3 {[%emt 0:00:05]} d5 {[%emt 0:00:36]} 4. Bg2 {[%emt 0:00:08]} Be7 {[%emt 0:02:02]} 5. Nf3 {[%emt 0:00:07]} O-O {[%emt 0:00:08]} 6. O-O {[%emt 0:00:05]} c6 {[%emt 0:00:53]} 7. b3 {[%emt 0:01:11]} b6 {[%emt 0:02:03]} 8. Bb2 {[%emt 0:00:13]} Bb7 {[%emt 0:01:00]} 9. Nc3 {[%emt 0:00:30]} Nbd7 {[%emt 0:00:39]} 10. Qc2 {[%emt 0:00:07]} Qc7 {[%emt 0:05:16]} 11. Rac1 {[%emt 0:04:32] E08: Closed Catalan: Main Line: 7 Qc2.} Rac8 {[%emt 0:02:00]} 12. Rfd1 {[%emt 0:05:34]} Rfd8 {[%emt 0:10:27]} 13. Qb1 {[%emt 0:12:27] The position is equal.} Qb8 {[%emt 0:03:48]} 14. a4 $146 {[%emt 0:03:39]} (14. Qa1 Bf8 15. Ne1 c5 16. cxd5 Nxd5 17. Nxd5 Bxd5 18. Bxd5 exd5 19. dxc5 Nxc5 20. Nf3 {1-0 Paravyan,D (2601)-Omelja,A (2437) Titled Tuesday intern op 11th Apr Early blitz 2023 (1)}) 14... Bb4 {[%emt 0:12:12]} 15. Na2 {[%emt 0:03:17]} Bf8 {[%emt 0:03:45]} 16. b4 {[%emt 0:00:26]} (16. Nc3 $11) 16... dxc4 $15 {[%emt 0:03:39]} 17. Rxc4 {[%emt 0:00:06]} c5 {[%emt 0:00:49] [#] and ...Bd5 should not be overlooked} 18. dxc5 {[%emt 0:02:53]} bxc5 {[%emt 0:04:48]} 19. b5 {[%emt 0:03:26]} a6 {[%emt 0:05:07]} 20. bxa6 {[%emt 0:13:52]} Bxa6 {[%emt 0:00:19]} 21. Rc2 {[%emt 0:00:03]} Be7 {[%emt 0:12:29]} 22. Rcd2 {[%emt 0:04:37]} Nb6 {[%emt 0:09:56]} 23. Be5 {[%emt 0:04:00]} Qa7 {[%emt 0:00:22]} 24. Rxd8+ {[%emt 0:02:10]} Bxd8 {[%emt 0:01:45]} 25. Nc3 {[%emt 0:01:52]} h6 {[%emt 0:02:38]} 26. Nb5 {[%emt 0:02:07]} Bxb5 {[%emt 0:00:46]} 27. axb5 {[%emt 0:00:08]} (27. Qxb5 Qxa4 28. Rxd8+ Rxd8) 27... Be7 {[%emt 0:01:03]} 28. Ba1 $36 {[%emt 0:01:55][%mdl 2048] White has good play.} Nbd7 {[%emt 0:05:41]} (28... c4 $14 {is more appropriate.}) 29. Ne5 $16 {[%emt 0:03:35]} Nxe5 {[%emt 0:00:25]} 30. Bxe5 {[%emt 0:00:06]} Qb6 {[%emt 0:01:49]} 31. Bc6 {[%emt 0:01:08] White is much more active. This pair of bishops is nice.} Rd8 {[%emt 0:01:56]} 32. Rxd8+ {[%emt 0:00:49]} Bxd8 {[%emt 0:00:02] Black is weak on the light squares} 33. Qa2 {[%emt 0:02:15]} Qa5 {[%emt 0:02:07]} (33... Ng4 $142 34. Bd6 c4) 34. Qc4 {[%emt 0:00:30]} Bb6 {[%emt 0:00:52] [#]} 35. e3 {[%emt 0:05:02]} (35. Bd6 $1 $16 {[%cal Rd6c5]}) 35... Qe1+ {[%emt 0:03:25]} 36. Kg2 {[%emt 0:00:09]} Qb1 {[%emt 0:00:24]} (36... Qd2 $14) 37. Qa4 {[%emt 0:02:12]} Nd5 $2 {[%emt 0:01:21] Black cannot hold the game after this.} (37... Qf5 $16 {is a better defense.} 38. Qa8+ Kh7 39. Bxf6 Qxf6) 38. Qa8+ {[%emt 0:05:38]} Kh7 {[%emt 0:00:06]} 39. Bxd5 {[%emt 0:00:04]} exd5 {[%emt 0:00:04]} 40. Qxd5 {[%emt 0:00:06]} Qxb5 $2 {[%emt 0:00:14]} (40... Qf5 41. e4 Qg5) 41. Qxf7 $18 {[%emt 0:50:34][%csl Ge5][%cal Rf7g7][%mdl 4096] Endgame KQB-KQB. White is a pawn up.} Qc6+ {[%emt 0:50:13]} 42. f3 {[%emt 0:01:04][%csl Ge5][%cal Rf7g7,Bf2f3,Bf3f4][%mdl 32]} Qg6 {[%emt 0:00:10]} 43. Qxg6+ {[%emt 0:01:25]} Kxg6 {[%emt 0:00:51] KB-KB. White is a pawn up.} 44. e4 {[%emt 0:00:06] Hoping for Bc3.} c4 $2 {[%emt 0:00:00]} (44... Ba5 45. Kf2 Kf7) 45. Bc3 {[%emt 0:00:00] White is clearly winning.} h5 {[%emt 0:00:00]} 46. f4 {[%emt 0:00:00]} Kf7 {[%emt 0:00:00]} 47. Kf3 {[%emt 0:00:00]} g6 {[%emt 0:00:00]} 48. h3 {[%emt 0:00:00][%cal Bh2h3,Bh3g4][%mdl 32]} Ke6 {[%emt 0:00:00]} 49. g4 {[%emt 0:00:00]} hxg4+ {[%emt 0:00:00]} 50. hxg4 {[%emt 0:00:00] Weighted Error Value: White=0.09 (flawless) /Black=0.65  Mistake:       	White=2     	Black=6      Inaccurate:     	White=1     	Black=3      OK:         	White=15    	Black=6      Best:        	White=3     	Black=2} 1-0

[Event "4NCL Div 1 2024-25"]
[Site "England"]
[Date "2025.04.05"]
[Round "7.3"]
[White "Dobrolyubov, Alexandr K"]
[Black "Wadsworth, Matthew J"]
[Result "0-1"]
[Annotator "RC"]
[ECO "C01"]
[WhiteElo "1951"]
[BlackElo "2461"]
[PlyCount "112"]
[EventDate "2024.11.23"]
[EventType "team-tourn"]
[EventCountry "ENG"]
[SourceTitle "playchess.com"]
[Source "ChessBase"]
[SourceQuality "1"]
[TimeControl "40/6000+30:3000+30"]

1. e4 {[%emt 0:10:02]} e6 {[%emt 0:10:09]} 2. d4 {[%emt 0:00:05]} d5 {[%emt 0:00:25]} 3. Bd3 {[%emt 0:00:07]} dxe4 {[%emt 0:00:29]} 4. Bxe4 {[%emt 0:00:01]} Nf6 {[%emt 0:00:17]} 5. Bf3 {[%emt 0:00:02]} c5 {[%emt 0:00:11]} 6. Ne2 {[%emt 0:00:02]} Be7 {[%emt 0:00:18]} 7. Be3 {[%emt 0:01:02]} O-O {[%emt 0:00:23]} 8. O-O {[%emt 0:03:08]} cxd4 {[%emt 0:00:42]} 9. Qxd4 {[%emt 0:00:19]} Nc6 {[%emt 0:05:44]} 10. Bxc6 {[%emt 0:01:37]} bxc6 {[%emt 0:00:09]} 11. Qxd8 {[%emt 0:04:11]} Rxd8 {[%emt 0:00:15]} 12. c4 {[%emt 0:00:02]} c5 {[%emt 0:13:51]} 13. f3 {[%emt 0:03:14]} Ba6 {[%emt 0:04:15]} 14. Rc1 {[%emt 0:11:16]} Rd3 {[%emt 0:12:44]} 15. Kf2 {[%emt 0:00:16]} e5 {[%emt 0:09:18]} 16. Nd2 {[%emt 0:09:19]} Rad8 {[%emt 0:02:08]} 17. Nb3 {[%emt 0:02:02]} Rc8 {[%emt 0:00:14]} 18. Ng3 {[%emt 0:01:55]} h5 {[%emt 0:02:06]} 19. Rc2 {[%emt 0:01:51]} g6 {[%emt 0:02:02]} 20. Ke2 {[%emt 0:01:11]} Rd7 {[%emt 0:03:53]} 21. Ke1 {[%emt 0:03:34]} h4 {[%emt 0:01:17]} 22. Nf1 {[%emt 0:00:34]} e4 {[%emt 0:04:13]} 23. f4 {[%emt 0:05:26]} Ng4 {[%emt 0:01:12]} 24. Bg1 {[%emt 0:00:24]} f5 {[%emt 0:06:12]} 25. g3 {[%emt 0:08:18]} hxg3 {[%emt 0:03:51]} 26. hxg3 {[%emt 0:00:02]} Kf7 {[%emt 0:01:44]} 27. Rd1 {[%emt 0:04:39]} Rdc7 {[%emt 0:09:55]} 28. Ne3 {[%emt 0:09:44]} Nxe3 {[%emt 0:00:11]} 29. Bxe3 {[%emt 0:00:02]} Rh8 {[%emt 0:00:11]} 30. Bf2 {[%emt 0:11:59]} Rh2 {[%emt 0:04:43]} 31. Nd2 {[%emt 0:00:48]} e3 {[%emt 0:03:56]} 32. Bxe3 {[%emt 0:00:24]} Bf6 {[%emt 0:00:01]} 33. Kf1 {[%emt 0:01:50]} Bd4 {[%emt 0:01:20]} 34. Bxd4 {[%emt 0:03:56]} cxd4 {[%emt 0:00:02]} 35. Kg1 {[%emt 0:00:09]} Re2 {[%emt 0:00:22]} 36. Rcc1 {[%emt 0:00:38]} Bb7 {[%emt 0:02:25]} 37. Nb3 {[%emt 0:00:49]} Rg2+ {[%emt 0:04:13]} 38. Kf1 {[%emt 0:00:01]} Kf6 {[%emt 0:01:17]} 39. Rd2 {[%emt 0:05:41]} Rxg3 {[%emt 0:00:08]} 40. Rxd4 {[%emt 0:03:35]} Rh7 {[%emt 0:00:07]} 41. Rd6+ {[%emt 0:55:58]} Ke7 {[%emt 0:50:13]} 42. Rd2 {[%emt 0:00:22]} Rh1+ {[%emt 0:00:00]} 43. Kf2 {[%emt 0:00:00]} Rhh3 {[%emt 0:00:00]} 44. Rg1 {[%emt 0:00:00]} Rg4 {[%emt 0:00:00]} 45. Re2+ {[%emt 0:00:00]} Kf6 {[%emt 0:00:00]} 46. Rxg4 {[%emt 0:00:00]} fxg4 {[%emt 0:00:00]} 47. Re3 {[%emt 0:00:00]} Rh2+ {[%emt 0:00:00]} 48. Kg3 {[%emt 0:00:00]} Rg2+ {[%emt 0:00:00]} 49. Kh4 {[%emt 0:00:00]} Kf5 {[%emt 0:00:00]} 50. Re7 {[%emt 0:00:00]} Rh2+ {[%emt 0:00:00]} 51. Kg3 {[%emt 0:00:00]} Rh3+ {[%emt 0:00:00]} 52. Kf2 {[%emt 0:00:00]} g3+ {[%emt 0:00:00]} 53. Ke2 {[%emt 0:01:05]} g2 {[%emt 0:00:00]} 54. Nd4+ {[%emt 0:03:18]} Kf6 {[%emt 0:00:00]} 55. Re6+ {[%emt 0:00:24]} Kf7 {[%emt 0:00:00]} 56. Kf2 {[%emt 0:00:39]} Rh1 {[%emt 0:00:00]} 0-1

[Event "4NCL Div 1 2024-25"]
[Site "England"]
[Date "2025.04.05"]
[Round "7.4"]
[White "Haydon, David L"]
[Black "Lentzos, Ioanis"]
[Result "1/2-1/2"]
[Annotator "ChessBase"]
[ECO "A17"]
[WhiteElo "2294"]
[BlackElo "2126"]
[PlyCount "230"]
[EventDate "2024.11.23"]
[EventType "team-tourn"]
[EventCountry "ENG"]
[SourceTitle "playchess.com"]
[Source "ChessBase"]
[SourceQuality "1"]
[TimeControl "40/6000+30:3000+30"]

1. Nf3 {[%emt 0:10:02]} d5 {[%emt 0:10:04]} 2. e3 {[%emt 0:00:43]} Nf6 {[%emt 0:00:17]} 3. c4 {[%emt 0:00:53]} e6 {[%emt 0:01:11]} 4. Nc3 {[%emt 0:02:08]} c5 {[%emt 0:00:25]} 5. cxd5 {[%emt 0:03:42]} Nxd5 {[%emt 0:00:06]} 6. Be2 {[%emt 0:02:46]} Nc6 {[%emt 0:01:28]} 7. O-O {[%emt 0:01:10]} Be7 {[%emt 0:00:17]} 8. Qc2 {[%emt 0:01:29]} O-O {[%emt 0:04:41]} 9. a3 {[%emt 0:04:01]} b6 {[%emt 0:04:55]} 10. Rd1 {[%emt 0:06:19]} Bb7 {[%emt 0:00:52]} 11. b3 {[%emt 0:01:40]} Nxc3 {[%emt 0:08:26]} 12. dxc3 {[%emt 0:00:22]} Qc7 {[%emt 0:00:12]} 13. Bb2 {[%emt 0:00:26]} Bf6 {[%emt 0:10:11]} 14. c4 {[%emt 0:02:39]} Ne5 {[%emt 0:00:29]} 15. Nxe5 {[%emt 0:04:06]} Bxe5 {[%emt 0:00:05]} 16. Bxe5 {[%emt 0:01:21]} Qxe5 {[%emt 0:00:03]} 17. Rac1 {[%emt 0:00:29]} Rad8 {[%emt 0:04:00]} 18. Rd2 {[%emt 0:04:58]} Qg5 {[%emt 0:06:44]} 19. Bf1 {[%emt 0:01:14]} Be4 {[%emt 0:02:14]} 20. Qb2 {[%emt 0:03:37]} Rxd2 {[%emt 0:00:14]} 21. Qxd2 {[%emt 0:00:08]} Rd8 {[%emt 0:00:03]} 22. Qe1 {[%emt 0:04:03]} h5 {[%emt 0:07:48]} 23. Rd1 {[%emt 0:04:53]} Bc2 {[%emt 0:06:23]} 24. Rxd8+ {[%emt 0:01:45]} Qxd8 {[%emt 0:00:05]} 25. b4 {[%emt 0:02:14]} Qd1 {[%emt 0:04:15]} 26. Qc3 {[%emt 0:01:43]} h4 {[%emt 0:00:58]} 27. h3 {[%emt 0:01:03]} e5 {[%emt 0:05:23]} 28. bxc5 {[%emt 0:08:19]} bxc5 {[%emt 0:00:19]} 29. f3 {[%emt 0:01:51]} e4 {[%emt 0:00:58]} 30. fxe4 {[%emt 0:00:57]} Bxe4 {[%emt 0:01:14]} 31. Qa5 {[%emt 0:00:28]} Kh7 {[%emt 0:22:02]} 32. Qxa7 {[%emt 0:00:46]} f5 {[%emt 0:05:19]} 33. Qc7 {[%emt 0:03:23]} Qc1 {[%emt 0:04:24]} 34. Qf4 {[%emt 0:00:11]} Bd3 {[%emt 0:00:09]} 35. Qxh4+ {[%emt 0:00:17]} Kg6 {[%emt 0:00:03]} 36. Qg3+ {[%emt 0:00:38]} Kh7 {[%emt 0:00:01]} 37. Qf4 {[%emt 0:01:27]} g6 {[%emt 0:00:41]} 38. a4 {[%emt 0:05:04]} Bxf1 {[%emt 0:00:25]} 39. Qxf1 {[%emt 0:00:03]} Qxe3+ {[%emt 0:00:05]} 40. Kh1 {[%emt 0:00:14]} Qb3 {[%emt 0:00:29]} 41. Qf4 {[%emt 0:50:04]} Qb4 {[%emt 0:28:13]} 42. Kh2 {[%emt 0:00:00]} Kg7 {[%emt 0:01:18]} 43. h4 {[%emt 0:00:00]} Qe1 {[%emt 0:06:41]} 44. h5 {[%emt 0:00:00]} Qe2 {[%emt 0:04:42]} 45. Qg5 {[%emt 0:00:00]} Qxc4 {[%emt 0:00:34]} 46. Qxg6+ {[%emt 0:00:00]} Kh8 {[%emt 0:00:04]} 47. Qh6+ {[%emt 0:00:00]} Kg8 {[%emt 0:00:04]} 48. Qg5+ {[%emt 0:00:00]} Kh8 {[%emt 0:00:04]} 49. a5 {[%emt 0:00:00]} Qd4 {[%emt 0:04:45]} 50. Qxf5 {[%emt 0:00:00]} c4 {[%emt 0:00:16]} 51. Qc8+ {[%emt 0:00:00]} Kh7 {[%emt 0:01:21]} 52. Qc7+ {[%emt 0:00:00]} Kh8 {[%emt 0:00:18]} 53. Kh3 {[%emt 0:00:00]} Qd3+ {[%emt 0:00:47]} 54. Kh4 {[%emt 0:00:00]} Qd4+ {[%emt 0:05:29]} 55. g4 {[%emt 0:00:00]} Qf6+ {[%emt 0:00:10]} 56. Kg3 {[%emt 0:00:00]} Qc3+ {[%emt 0:00:26]} 57. Kf4 {[%emt 0:00:00]} Qd2+ {[%emt 0:01:19]} 58. Kf5 {[%emt 0:00:00]} Qd3+ {[%emt 0:00:10]} 59. Kg5 {[%emt 0:00:00]} c3 {[%emt 0:01:21]} 60. Qe5+ {[%emt 0:00:00]} Kh7 {[%emt 0:00:13]} 61. Qe7+ {[%emt 0:00:00]} Kh8 {[%emt 0:00:10]} 62. a6 {[%emt 0:00:00]} c2 {[%emt 0:00:29]} 63. Qe5+ {[%emt 0:02:07]} Kh7 {[%emt 0:00:11]} 64. Qc7+ {[%emt 0:00:09]} Kh8 {[%emt 0:00:04]} 65. a7 {[%emt 0:00:27]} Qe3+ {[%emt 0:03:52]} 66. Kh4 {[%emt 0:02:13]} Qe1+ {[%emt 0:00:41]} 67. Kh3 {[%emt 0:02:20]} Qh1+ {[%emt 0:00:37]} 68. Kg3 {[%emt 0:00:20]} c1=Q {[%emt 0:00:42]} 69. a8=Q+ {[%emt 0:01:46]} Qxa8 {[%emt 0:00:03]} 70. Qxc1 {[%emt 0:00:18]} Qe4 {[%emt 0:00:19]} 71. Qc8+ {[%emt 0:00:49]} Kg7 {[%emt 0:00:10]} 72. Qc7+ {[%emt 0:01:15]} Kg8 {[%emt 0:00:12]} 73. Qd8+ {[%emt 0:01:00]} Kh7 {[%emt 0:00:15]} 74. Qf6 {[%emt 0:00:42]} Qe3+ {[%emt 0:00:36]} 75. Qf3 {[%emt 0:00:16]} Qg1+ {[%emt 0:00:19]} 76. Kh3 {[%emt 0:00:24]} Qe1 {[%emt 0:00:21]} 77. g5 {[%emt 0:01:54]} Qe6+ {[%emt 0:00:07]} 78. Kh4 {[%emt 0:00:56]} Qc4+ {[%emt 0:00:13]} 79. Qg4 {[%emt 0:00:21]} Qd5 {[%emt 0:01:13]} 80. Qe2 {[%emt 0:02:45]} Qd4+ {[%emt 0:00:21]} 81. Kg3 {[%emt 0:00:16]} Qg1+ {[%emt 0:00:24]} 82. Kf4 {[%emt 0:00:22]} Qc1+ {[%emt 0:00:02]} 83. Kf5 {[%emt 0:01:00]} Qc5+ {[%emt 0:00:18]} 84. Qe5 {[%emt 0:00:44]} Qc8+ {[%emt 0:00:48]} 85. Kf4 {[%emt 0:00:07]} Qc1+ {[%emt 0:00:04]} 86. Kf5 {[%emt 0:01:19]} Qc8+ {[%emt 0:00:07]} 87. Qe6 {[%emt 0:00:10]} Qc5+ {[%emt 0:00:05]} 88. Kf6 {[%emt 0:00:52]} Qc3+ {[%emt 0:00:12]} 89. Qe5 {[%emt 0:01:24]} Qc6+ {[%emt 0:00:15]} 90. Kf7 {[%emt 0:00:07]} Qc4+ {[%emt 0:00:46]} 91. Qe6 {[%emt 0:01:11]} Qf4+ {[%emt 0:00:40]} 92. Qf6 {[%emt 0:01:16]} Qc4+ {[%emt 0:00:06]} 93. Ke7 {[%emt 0:01:18]} Qc5+ {[%emt 0:01:13]} 94. Ke8 {[%emt 0:00:39]} Qb5+ {[%emt 0:00:18]} 95. Kf8 {[%emt 0:00:16]} Qb8+ {[%emt 0:00:11]} 96. Kf7 {[%emt 0:00:31]} Qf8+ {[%emt 0:00:43]} 97. Ke6 {[%emt 0:00:09]} Qc8+ {[%emt 0:00:03]} 98. Ke5 {[%emt 0:00:16]} Qc5+ {[%emt 0:00:18]} 99. Ke4 {[%emt 0:00:16]} Qc4+ {[%emt 0:00:19]} 100. Ke3 {[%emt 0:00:42]} Qc1+ {[%emt 0:00:17]} 101. Kf2 {[%emt 0:00:05]} Qd2+ {[%emt 0:00:05]} 102. Kg3 {[%emt 0:00:10]} Qe3+ {[%emt 0:00:09]} 103. Kh4 {[%emt 0:02:14]} Qe4+ {[%emt 0:00:20]} 104. Kg3 {[%emt 0:00:22]} Qe3+ {[%emt 0:00:09]} 105. Kg4 {[%emt 0:00:04]} Qg1+ {[%emt 0:00:43]} 106. Kf5 {[%emt 0:00:08]} Qf1+ {[%emt 0:00:15]} 107. Ke6 {[%emt 0:00:25]} Qc4+ {[%emt 0:01:03]} 108. Ke7 {[%emt 0:00:16]} Qc5+ {[%emt 0:00:10]} 109. Ke8 {[%emt 0:00:14]} Qb5+ {[%emt 0:00:21]} 110. Kf7 {[%emt 0:00:25]} Qc4+ {[%emt 0:01:14]} 111. Qe6 {[%emt 0:00:22]} Qf4+ {[%emt 0:00:08]} 112. Qf6 {[%emt 0:00:19]} Qc4+ {[%emt 0:00:05]} 113. Ke8 {[%emt 0:01:43]} Qb5+ {[%emt 0:00:35]} 114. Kd8 {[%emt 0:01:02]} Qb8+ {[%emt 0:00:24]} 115. Kd7 {[%emt 0:00:07]} Qb5+ {[%emt 0:08:02]} 1/2-1/2

[Event "4NCL Div 1 2024-25"]
[Site "England"]
[Date "2025.04.05"]
[Round "7.5"]
[White "Foisor, Mihaela-Veronica"]
[Black "Zhou, Yang-Fan"]
[Result "0-1"]
[Annotator "RC"]
[ECO "A36"]
[WhiteElo "2156"]
[BlackElo "2418"]
[PlyCount "98"]
[EventDate "2024.11.23"]
[EventType "team-tourn"]
[EventCountry "ENG"]
[SourceTitle "playchess.com"]
[Source "ChessBase"]
[SourceQuality "1"]
[TimeControl "40/6000+30:3000+30"]

1. c4 {[%emt 0:10:13]} Nf6 {[%emt 0:11:25]} 2. Nc3 {[%emt 0:00:08]} g6 {[%emt 0:00:14]} 3. g3 {[%emt 0:00:06]} Bg7 {[%emt 0:00:04]} 4. Bg2 {[%emt 0:00:04]} O-O {[%emt 0:00:04]} 5. e4 {[%emt 0:01:05]} d6 {[%emt 0:00:05]} 6. Nge2 {[%emt 0:00:04]} c5 {[%emt 0:00:04]} 7. O-O {[%emt 0:00:38]} Nc6 {[%emt 0:00:06]} 8. d3 {[%emt 0:02:26]} Rb8 {[%emt 0:00:17]} 9. h3 {[%emt 0:00:46]} Ne8 {[%emt 0:02:35]} 10. Be3 {[%emt 0:01:20]} Nc7 {[%emt 0:00:06]} 11. d4 {[%emt 0:00:34]} b5 {[%emt 0:00:05]} 12. dxc5 {[%emt 0:05:10]} dxc5 {[%emt 0:00:50]} 13. cxb5 {[%emt 0:09:51]} Nxb5 {[%emt 0:00:24]} 14. Bxc5 {[%emt 0:03:26]} Nxc3 {[%emt 0:00:10]} 15. bxc3 {[%emt 0:04:43]} Qa5 {[%emt 0:00:07]} 16. Bd4 {[%emt 0:24:22]} Nxd4 {[%emt 0:15:02]} 17. cxd4 {[%emt 0:00:16]} Ba6 {[%emt 0:01:21]} 18. Re1 {[%emt 0:06:54]} Rfd8 {[%emt 0:03:43]} 19. Rb1 {[%emt 0:02:23]} Qxa2 {[%emt 0:15:41]} 20. Ra1 {[%emt 0:06:57]} Qc4 {[%emt 0:08:12]} 21. Bf1 {[%emt 0:04:11]} Qc8 {[%emt 0:03:03]} 22. Ra4 {[%emt 0:02:27]} Ra8 {[%emt 0:15:29]} 23. Qa1 {[%emt 0:03:33]} Bb7 {[%emt 0:03:47]} 24. Bg2 {[%emt 0:07:17]} a6 {[%emt 0:11:51]} 25. Qa3 {[%emt 0:08:27]} e6 {[%emt 0:07:35]} 26. Rc1 {[%emt 0:01:22]} Qd7 {[%emt 0:00:08]} 27. e5 {[%emt 0:02:46]} Bf8 {[%emt 0:01:53]} 28. Qa2 {[%emt 0:00:44]} Bxg2 {[%emt 0:00:06]} 29. Kxg2 {[%emt 0:00:05]} Rdc8 {[%emt 0:04:39]} 30. Rxc8 {[%emt 0:01:41]} Qxc8 {[%emt 0:00:02]} 31. Qc4 {[%emt 0:01:19]} Qb7+ {[%emt 0:01:04]} 32. Kg1 {[%emt 0:00:18]} a5 {[%emt 0:01:10]} 33. Nc3 {[%emt 0:00:48]} Rc8 {[%emt 0:01:03]} 34. Qb5 {[%emt 0:00:33]} Qf3 {[%emt 0:00:53]} 35. Rc4 {[%emt 0:00:13]} Ra8 {[%emt 0:01:18]} 36. Na4 {[%emt 0:00:44]} Bb4 {[%emt 0:01:25]} 37. Qc6 {[%emt 0:00:31]} Qd1+ {[%emt 0:01:44]} 38. Kg2 {[%emt 0:00:01]} Rd8 {[%emt 0:00:10]} 39. Nc3 {[%emt 0:00:59]} Bxc3 {[%emt 0:00:48]} 40. Rxc3 {[%emt 0:00:02]} Qxd4 {[%emt 0:00:19]} 41. Qc7 {[%emt 0:21:47]} a4 {[%emt 0:24:31]} 42. Rf3 {[%emt 0:10:16]} Rd7 {[%emt 0:05:09]} 43. Qc6 {[%emt 0:00:08]} Ra7 {[%emt 0:03:20]} 44. Rf4 {[%emt 0:07:32]} Qd5+ {[%emt 0:00:44]} 45. Qxd5 {[%emt 0:00:09]} exd5 {[%emt 0:00:02]} 46. Rd4 {[%emt 0:00:09]} a3 {[%emt 0:00:50]} 47. Rd1 {[%emt 0:00:05]} a2 {[%emt 0:00:17]} 48. Ra1 {[%emt 0:00:04]} Kf8 {[%emt 0:02:00]} 49. Kf3 {[%emt 0:00:09]} Ra3+ {[%emt 0:05:13]} 0-1